Cogmind - Beta 12 @@@ ROGUE MODE // 2023.07.11 @ 15:27:35 Player: wchar_t Result: Core destroyed Performance ------------- Evolutions (7) 3500 Regions Visited (27) 5400 Robots Destroyed (232) 1160 Value Destroyed (7606) 7606 Prototype IDs (117) 2340 Alien Tech Used (8) 1600 Bonus (2723) 2723 TOTAL SCORE: 24329 Bonus ------- High Alert Combat Kills 753 Follower Combat Kills 1028 Aligned with FarCom 300 Met Imprinter 300 Was Imprinted 300 Met Warlord at Base 500 MAIN.C Attacked Warlord 500 Friendly Fire -958 Cogmind --------- Core Integrity 0/1300 Matter 79/300 Energy 211/220 System Corruption 27% Temperature Cool (18) Movement Flying (25) Location -3/Section 7 Parts ------- > --- POWER (2) -------- Light Antimatter Reactor Micro Antimatter Reactor > --- PROPULSION (8) --- Xenon Bombardment Thruster Nuclear Pulse Array Nuclear Pulse Array Impulse Thruster Cooled Field Propulsion Drive Cooled Field Propulsion Drive > --- UTILITY (8) ------ Advanced Heat Sink Medium Storage Unit Advanced Sensor Array Experimental Signal Interpreter Spacefold Activator > --- WEAPON (3) ------- (None) > --- INVENTORY (10) --- Improved Propulsion Shielding Integrity Redistributor Subatomic Replicator Core Cannon Peak State ------------ > --- POWER ------------ Light Particle Reactor Micro Antimatter Reactor > --- PROPULSION ------- Biomechanical Wings Biomechanical Wings Nuclear Pulse Array Field Propulsion Array Electron Diverter Improved Diametric Drive > --- UTILITY ---------- Medium Storage Unit Experimental Optical Array Advanced Sensor Array Experimental Signal Interpreter Nanoactuators Advanced Actuator Array Advanced Reaction Control System Improved Utility Shielding > --- WEAPON ----------- Core Cannon > --- INVENTORY -------- Impulse Thruster Electron Diverter Advanced Sensor Array Advanced Signal Interpreter Advanced Phase Shifter Improved Propulsion Shielding Phase Redirector Subatomic Replicator Rocket Array Micro-nuke Launcher [Rating: 153] Favorites ----------- Power Micro Nuclear Core Engine Makeshift Power Source Power Core Micro Nuclear Core Reactor Light Antimatter Reactor Propulsion Biomechanical Wings Leg Aluminum Leg Hover Unit Gyrokinetic Inverter Flight Unit Biomechanical Wings Utility Medium Storage Unit Device Advanced Sensor Array Storage Medium Storage Unit Processor Advanced Signal Interpreter Hackware Hacking Suite Protection Improved Propulsion Shielding Artifact Spacefold Activator Weapon Plasma Sword Energy Gun Medium Laser Energy Cannon Plasma Cannon Ballistic Gun 8R-AWN's Boregun Ballistic Cannon Light Antimatter Cannon Launcher Rocket Array Impact Weapon Power Maul Slashing Weapon Plasma Sword Piercing Weapon Kinetic Spear Build | -11 -10 -10 -9 -9 -9 -8 -8 -7 -7 -7 -7 -6 -6 -6 -6 -5 -5 -5 -5 -5 -4 -4 -4 -4 -3 -3 -3 ------- Run | Jun Mat Min Mat Min Exi Min Mat Fac Was Fac Low Fac Low Low Zio Pro Fac Upp Upp War Pro Fac Was Fac Res Qua Sec Slots Evolved 14 | . . . 2 . . . 2 2 . . . 2 . . . . 2 . . . . 2 . . 2 . . Power 1 | . . . . . . . . . . . . . . . . . 1 . . . . . . . . . . Propulsion 6 | . . . 1 . . . 1 1 . . . 1 . . . . . . . . . 1 . . 1 . . Utility 6 | . . . 1 . . . 1 1 . . . 1 . . . . 1 . . . . . . . 1 . . Weapon 1 | . . . . . . . . . . . . . . . . . . . . . . 1 . . . . . Parts Attached 386 | 6 3 4 10 . 25 . 17 62 2 22 1 26 1 5 . 2 28 1 15 17 3 17 2 20 13 23 61 Power 40 | 1 . . 1 . 1 . 2 2 . 3 . 1 . 1 . 2 4 1 3 2 1 2 . 2 . 2 9 Engine 7 | 1 . . 1 . 1 . 1 . . . . . . . . 2 . . 1 . . . . . . . . Core 18 | . . . . . . . 1 2 . 3 . 1 . 1 . . 4 1 2 1 . 1 . 1 . . . Reactor 15 | . . . . . . . . . . . . . . . . . . . . 1 1 1 . 1 . 2 9 Propulsion 100 | 2 . 1 4 . 9 . 5 14 . 5 . 6 . 2 . . 10 . . 3 . 2 1 5 1 2 28 Treads . | . . . . . . . . . . . . . . . . . . . . . . . . . . . . Leg 21 | 2 . 1 4 . 7 . 5 2 . . . . . . . . . . . . . . . . . . . Wheel . | . . . . . . . . . . . . . . . . . . . . . . . . . . . . Hover 2 | . . . . . . . . . . . . . . . . . . . . . . . . . . . 2 Flight 77 | . . . . . 2 . . 12 . 5 . 6 . 2 . . 10 . . 3 . 2 1 5 1 2 26 Utility 148 | 1 1 2 2 . 8 . 5 27 2 8 1 12 . 1 . . 11 . 5 9 2 9 1 12 6 10 13 Device 76 | . 1 2 1 . 3 . 1 17 2 5 . 3 . 1 . . 3 . 3 2 1 3 . 7 4 7 10 Storage 13 | 1 . . 1 . 3 . 1 2 . . . 3 . . . . . . . 1 . . . . . . 1 Processor 15 | . . . . . . . . 4 . 1 . 2 . . . . 1 . . 2 . 3 . 1 . . 1 Hackware 11 | . . . . . 1 . 1 1 . 1 . . . . . . 3 . 1 . . 1 . 1 1 . . Protection 31 | . . . . . 1 . 2 3 . 1 1 4 . . . . 4 . 1 4 1 2 1 3 1 2 . Artifact 2 | . . . . . . . . . . . . . . . . . . . . . . . . . . 1 1 Weapon 98 | 2 2 1 3 . 7 . 5 19 . 6 . 7 1 1 . . 3 . 7 3 . 4 . 1 6 9 11 Energy Gun 9 | 1 1 . 2 . 1 . . 2 . . . . . . . . . . . . . . . . . . 2 Energy Cannon 8 | . . . . . . . 1 2 . . . . . . . . . . . . . . . . . 4 1 Ballistic Gun 10 | 1 1 . . . 3 . 2 3 . . . . . . . . . . . . . . . . . . . Ballistic Cannon 19 | . . 1 1 . 1 . . 4 . 2 . 3 . 1 . . . . . . . . . . . . 6 Launcher 21 | . . . . . . . 2 3 . 2 . 2 1 . . . . . 3 . . 1 . . 2 3 2 Special Weapon . | . . . . . . . . . . . . . . . . . . . . . . . . . . . . Impact Weapon 6 | . . . . . . . . 3 . . . . . . . . . . . . . 2 . . . 1 . Slashing Weapon 20 | . . . . . 2 . . 2 . 2 . 2 . . . . 3 . 4 2 . 1 . . 2 . . Piercing Weapon 5 | . . . . . . . . . . . . . . . . . . . . 1 . . . 1 2 1 . Special Melee Weapon . | . . . . . . . . . . . . . . . . . . . . . . . . . . . . Unidentified Prototypes 41 | . . . 1 . 5 . . 12 1 . . 1 . . . . 2 . . 3 . 3 . 1 . 6 6 Corrupted Parts 3 | . . . . . . . . . . . . . . . . . . . . . . 2 . . . . 1 System Corruption 19 | . . . . . . . . . . . . . . . . . . . . . . 13 . . . . 6 Parts Lost 68 | . . . 1 . 9 . . 6 . 4 . 1 . 1 . 1 3 . 3 . . 1 . 1 3 4 30 Power 15 | . . . 1 . 1 . . . . 2 . . . 1 . 1 2 . 1 . . 1 . 1 . . 4 Propulsion 22 | . . . . . 4 . . 3 . . . 1 . . . . . . 1 . . . . . . . 13 Utility 17 | . . . . . 2 . . 1 . 2 . . . . . . 1 . . . . . . . 2 . 9 Weapon 14 | . . . . . 2 . . 2 . . . . . . . . . . 1 . . . . . 1 4 4 Highest Loss Streak 8 | . . . 1 . 8 . . 5 . 2 . 1 . 1 . 1 2 . 2 . . 1 . 1 2 2 7 To Critical Strikes 3 | . . . . . 3 . . . . . . . . . . . . . . . . . . . . . . Average Slot Usage (%) 92 | . 86 99 92 100 85 100 98 96 100 99 98 99 94 92 100 100 97 94 88 95 94 93 94 92 87 85 72 Engine 2 | . 14 14 9 11 7 11 7 . . . . . . . . 1 . . . 5 . . . . . . . Core 3 | . . . . . . . 1 7 7 7 7 6 6 6 6 4 8 5 5 5 5 4 5 5 4 . . Reactor 1 | . . . . . . . . . . . . . . . . . . . . . 4 5 5 3 4 8 4 Leg 9 | . 28 28 33 33 27 33 34 13 . . . . . . . . . . . . . . . . . . . Flight 23 | . . . . . . . . 23 38 38 38 39 40 38 40 40 35 35 30 30 29 30 31 31 28 28 29 Device 9 | . 1 13 16 22 17 11 9 8 7 6 . 5 6 5 6 6 5 5 7 6 5 5 5 6 13 14 15 Storage 6 | . 14 14 11 11 9 11 9 7 7 7 7 6 6 6 6 6 5 5 5 5 5 5 5 5 4 4 4 Processor 8 | . . . . . . . . 8 15 15 15 13 13 13 13 13 11 11 11 11 11 12 15 13 9 9 8 Hackware 3 | . . . . . 3 11 9 6 7 3 . . . . . . 4 5 5 2 . 2 . 2 4 2 . Protection 6 | . . . . . . . 8 5 . 3 13 12 13 13 13 13 10 11 8 11 17 10 10 7 4 3 1 Energy Gun 1 | . 14 14 11 11 5 . . 2 7 1 . . . . . . . . . . . . . . . . . Ballistic Gun 2 | . 14 4 . . 6 22 14 5 . . . . . . . . . . . . . . . . . . . Ballistic Cannon 2 | . . 9 11 11 4 . . 1 7 6 7 5 . . 6 6 1 . . . . . . . . . 1 Slashing Weapon 3 | . . . . . 3 . . 1 . 5 7 5 6 6 6 6 8 11 7 10 11 10 10 6 2 . . Naked Turns 10 | . . . . . 10 . . . . . . . . . . . . . . . . . . . . . . Heaviest Build 107 | 12 14 16 20 20 24 24 107 103 25 27 27 29 31 28 28 33 37 28 32 35 40 43 41 44 51 66 52 Greatest Support 108 | 20 20 20 30 30 70 70 90 108 26 28 28 36 36 36 30 36 38 38 38 42 42 48 49 50 56 57 55 Greatest Overweight (x) 9 | . . . . . 1 . 1 4 . . . . . . . . . . . 9 . . . . 1 1 1 Average Overweight (x) . | . . . . . . . . . . . . . . . . . . . . . . . . . . . . Largest Inventory Capacity 25 | 8 8 8 10 10 10 10 25 25 10 10 10 15 10 10 10 10 10 10 10 10 10 10 10 10 10 10 10 Average Capacity 11 | 6 8 8 8 10 9 10 19 15 10 10 10 10 10 10 10 10 10 10 10 10 10 10 10 10 10 10 10 Most Carried 25 | 4 8 8 10 10 10 10 25 25 10 10 10 11 10 10 10 10 10 10 10 10 10 10 10 10 10 10 10 Average Carried 10 | 1 5 7 7 10 8 10 17 15 10 9 10 9 8 8 9 9 9 9 9 9 10 9 10 9 9 9 9 Final Capacity 25 | 8 8 8 10 10 10 10 25 10 10 10 10 10 10 10 10 10 10 10 10 10 10 10 10 10 10 10 10 Final Carried 25 | 4 8 8 10 10 10 10 25 10 10 10 10 10 9 9 10 10 10 10 10 10 10 10 10 10 9 10 5 Class Distribution -------------------- 45% | Scout 22% | Scavenger-Mutant 9% | Mutant 9% | Scavenger-Scout 4% | Sprinter 3% | Commander-Scout Dominant Class ---------------- Mutant | -10/Materials Mutant | -10/Mines Scavenger-Mutant | -9/Materials Scavenger-Mutant | -9/Mines Scavenger-Mutant | -9/Exiles Scavenger-Mutant | -8/Mines Scavenger-Mutant | -8/Materials Sprinter | -7/Factory Scavenger-Scout | -7/Waste Scout | -7/Factory Sprinter | -7/Lower Caves Scout | -6/Factory Scout | -6/Lower Caves Scout | -6/Lower Caves Scout | -6/Zion Scout | -5/Proximity Caves Scout | -5/Factory Scout | -5/Upper Caves Scout | -5/Upper Caves Commander-Scout | -5/Warlord Scavenger-Scout | -4/Proximity Caves Hacker-Scout | -4/Factory Scavenger-Scout | -4/Waste Scout | -4/Factory Scout | -3/Research Scout | -3/Quarantine Scout | -3/Section 7 Resources | -11 -10 -10 -9 -9 -9 -8 -8 -7 -7 -7 -7 -6 -6 -6 -6 -5 -5 -5 -5 -5 -4 -4 -4 -4 -3 -3 -3 ----------- Run | Jun Mat Min Mat Min Exi Min Mat Fac Was Fac Low Fac Low Low Zio Pro Fac Upp Upp War Pro Fac Was Fac Res Qua Sec Matter Collected 7236 | 233 . 155 294 12 248 61 736 1058 . 817 19 444 38 57 . 89 280 20 183 278 10 204 . 262 135 368 1235 Remotely . | . . . . . . . . . . . . . . . . . . . . . . . . . . . . Salvage Created 9430 | . . 367 465 . 272 64 1175 1325 . 659 . 977 . 131 . 73 420 130 95 67 84 787 . 472 481 469 917 Parts 512 | . . 18 26 . 21 9 74 84 . 47 . 35 . 8 . 2 23 6 13 3 7 14 . 9 40 30 43 Haulers Intercepted 32 | . . . 3 . . . 2 6 . 4 . 5 . . . . 2 . . . . 5 . 2 1 . 2 Recyclers Shooed 10 | . . 2 3 . . . . 1 . 2 . 1 . . . . . . . . . . . . . . 1 Parts Field Recycled . | . . . . . . . . . . . . . . . . . . . . . . . . . . . . Retrieved Matter . | . . . . . . . . . . . . . . . . . . . . . . . . . . . . Parts Self-Destructed 39 | . . . . . . . . . . . . . . 13 . 11 . 3 3 . 9 . . . . . . Prevented 4 | . . . . . . . . . . . . . . 3 . 1 . . . . . . . . . . . Kills | -11 -10 -10 -9 -9 -9 -8 -8 -7 -7 -7 -7 -6 -6 -6 -6 -5 -5 -5 -5 -5 -4 -4 -4 -4 -3 -3 -3 ------- Run | Jun Mat Min Mat Min Exi Min Mat Fac Was Fac Low Fac Low Low Zio Pro Fac Upp Upp War Pro Fac Was Fac Res Qua Sec Combat Hostiles Destroyed 129 | . . 6 10 . 8 4 16 20 . 5 . 9 . 3 . 1 3 1 7 . 2 3 . 1 3 4 23 Melee 29 | . . . . . 8 . . 5 . 2 . 1 . 3 . . 3 1 . . 2 2 . . . 2 . Guns 27 | . . 4 2 . . 4 12 5 . . . . . . . . . . . . . . . . . . . Cannons 34 | . . 2 8 . . . 1 3 . 3 . 1 . . . 1 . . . . . . . . . . 15 AOE 36 | . . . . . . . 3 7 . . . 7 . . . . . . 7 . . . . . 3 2 7 Classes Destroyed 22 | . . 3 2 . 2 . 6 4 . . . 1 . . . . . 1 1 . 1 . . . . 1 . Worker 10 | . . . . . . . 1 1 . 4 . 2 . . . . . . . . . . . . . 1 1 Builder 14 | . . . . . . . 3 . . 1 . . . . . . . . . . . . . . 6 3 1 Tunneler 3 | . . . . . . . 3 . . . . . . . . . . . . . . . . . . . . Hauler 32 | . . . 3 . . . 2 6 . 4 . 5 . . . . 2 . . . . 5 . 2 1 . 2 Recycler 17 | . . 2 . . . . 2 3 . 4 . 2 . . . . . . . . . . . . 1 1 2 Operator 4 | . . . . . . . . 1 . 1 . . . . . . . . . . . 1 . 1 . . . Drone 1 | . . . . . . . . . . . . . . . . . . . . . 1 . . . . . . Watcher 24 | . . . 1 . . . 2 5 . 1 . . . . . . 2 . . . . 4 . 4 2 2 1 Swarmer 42 | . . 2 . . . 4 3 10 . . . . . 1 . 1 . . 4 . . . . . 3 . 14 Grunt 35 | . . 4 10 . . . 10 1 . . . 5 . 1 . . . . . . 1 1 . . . . 2 Brawler 2 | . . . . . . . 1 . . . . 1 . . . . . . . . . . . . . . . Duelist 1 | . . . . . . . . 1 . . . . . . . . . . . . . . . . . . . Researcher 1 | . . . . . . . . . . . . . . . . . . . . . . . . . . 1 . Sentry 11 | . . . . . . . 1 3 . 1 . 1 . . . . 1 1 . . . 1 . 1 . . 1 Demolisher 1 | . . . . . . . . . . . . 1 . . . . . . . . . . . . . . . Specialist 1 | . . . . . . . . 1 . . . . . . . . . . . . . . . . . . . Hunter 5 | . . . . . . . 1 2 . . . 1 . . . . . . . 1 . . . . . . . Programmer 20 | . . . . . . . . 2 . 4 . . . 1 . . 2 . . . . 1 . . . 4 6 Zionite 2 | . . . . . 2 . . . . . . . . . . . . . . . . . . . . . . Decomposer 2 | . . . . . . . . . . . . . . . . . . . 2 . . . . . . . . Samaritan 1 | . . . . . . . . . . . . . . . . . . 1 . . . . . . . . . Master Thief 3 | . . . . . . . . . . . . . . . . . . . 3 . . . . . . . . Assembled 7 | . . . . . 7 . . . . . . . . . . . . . . . . . . . . . . Thug 1 | . . . . . . . . . . . . . . . . 1 . . . . . . . . . . . Best Kill Streak 8 | . . 4 3 . 7 4 6 5 . 4 . 8 . 2 . 1 1 1 4 . 1 2 . 2 3 3 6 Combat Bots Only 7 | . . 2 2 . 7 4 5 4 . 1 . 6 . 2 . 1 1 1 4 . 1 2 . 1 3 2 6 Max Kills in Single Turn 5 | . . 1 1 . 1 2 2 3 . 1 . 5 . 1 . 1 1 1 4 1 1 1 . 1 3 1 3 Gunslinging 1 | . . . . . . 1 . . . . . . . . . . . . . . . . . . . . . Exploded 4 | . . . . . . . 1 2 . . . 4 . . . . . . 4 . . . . . 3 1 3 Melee 1 | . . . . . 1 . . 1 . 1 . 1 . 1 . . 1 1 . . 1 1 . . . 1 . Uniques/NPCs Destroyed 2 | . . . . . 2 . . . . . . . . . . . . . . . . . . . . . . EX-DEC (-9/Exiles) 8R-AWN (-9/Exiles) Combat | -11 -10 -10 -9 -9 -9 -8 -8 -7 -7 -7 -7 -6 -6 -6 -6 -5 -5 -5 -5 -5 -4 -4 -4 -4 -3 -3 -3 -------- Run | Jun Mat Min Mat Min Exi Min Mat Fac Was Fac Low Fac Low Low Zio Pro Fac Upp Upp War Pro Fac Was Fac Res Qua Sec Damage Taken 12058 | . . 133 522 . 862 82 815 1208 . 887 31 316 . 97 . 129 743 33 343 45 77 274 . 325 490 657 3989 Core 2958 | . . 52 50 . 300 16 127 312 . 212 16 54 . . . 19 222 . 113 9 21 31 . 187 64 174 979 Absorbed by Shields 63 | . . . . . . . . . . 29 . . . . . . 16 . . 8 . 10 . . . . . Redirected to Shielding 909 | . . . . . . . . 108 . 57 . 86 . 37 . 20 139 21 50 22 . 49 . 30 131 74 85 Regen/Repaired (Parts) 641 | . . . . . . . . . . 154 . 88 . . 187 . 113 . . 99 . . . . . . . Core Remaining (%) 65 | 100 . 79 . . . 8 76 . . . 22 . . . . 91 . . . . 63 . . 81 . . . Volleys Fired 448 | . . 18 51 3 . 5 68 65 . 61 . 23 . . 1 11 . . 5 . . . . . 1 16 120 Largest 2 | . . 2 2 1 . 2 2 2 . 2 . 1 . . 1 1 . . 1 . . . . . 1 1 1 Hottest 162 | . . 85 85 35 . 53 110 162 . 93 . 60 . . 60 60 . . 45 . . . . . 45 113 94 Shots Fired 591 | . . 36 102 3 . 10 119 88 . 59 . 23 . . 1 11 . . 5 . . . . . 1 16 117 Gun 247 | . . 32 51 . . 10 95 49 . . . . . . . . . . . . . . . . . . 10 Cannon 311 | . . 4 51 3 . . 18 34 . 56 . 20 . . 1 11 . . . . . . . . . 11 102 Launcher 33 | . . . . . . . 6 5 . 3 . 3 . . . . . . 5 . . . . . 1 5 5 Special . | . . . . . . . . . . . . . . . . . . . . . . . . . . . . Kinetic 423 | . . 18 51 3 . 10 95 65 . 56 . 20 . . 1 11 . . . . . . . . . . 93 Thermal 123 | . . 18 51 . . . 18 18 . . . . . . . . . . . . . . . . . 8 10 Explosive 33 | . . . . . . . 6 5 . 3 . 3 . . . . . . 5 . . . . . 1 5 5 Electromagnetic 12 | . . . . . . . . . . . . . . . . . . . . . . . . . . 3 9 Robot Hit Streak 12 | . . 12 11 . . 3 5 10 . 11 . 11 . . . 2 . . 2 . . . . . 2 5 12 Robot Miss Streak 9 | . . 3 3 . . 2 9 5 . 7 . 3 . . . 3 . . 7 . . . . . 3 2 5 Penetration Max 2 | . . . . . . . 2 1 . . . . . . . . . . . . . . . . . . . Secondary Targets 1 | . . . . . . 1 . . . . . . . . . . . . . . . . . . . . . Max Gunslinging Chain 1 | . . . . . . 1 . . . . . . . . . . . . . . . . . . . . . Shots Hit Robots 556 | . . 24 67 . 43 5 53 60 . 44 . 33 . 5 . 4 27 2 4 2 6 35 . 24 19 25 74 Core Hits 345 | . . 17 22 . 15 4 41 43 . 23 . 30 . 4 . 3 7 2 18 . 3 5 . 4 17 22 65 Critical Kills 18 | . . . . . . . 9 8 . . . . . . . . . . . . . 1 . . . . . Critical Parts Destroyed 25 | . . . . . . . 12 5 . . . . . . . . . . . . . 4 . 3 . 1 . Critical Strikes 76 | . . 1 5 . 1 . 22 14 . 1 . 3 . . . 2 2 . . . 2 8 . 3 3 4 5 Burn 3 | . . . 3 . . . . . . . . . . . . . . . . . . . . . . . . Destroy 35 | . . . . . . . 22 13 . . . . . . . . . . . . . . . . . . . Blast 12 | . . 1 2 . . . . . . 1 . 1 . . . 2 . . . . . . . . . . 5 Smash 10 | . . . . . . . . 1 . . . . . . . . . . . . . 5 . 3 . 1 . Sever 10 | . . . . . 1 . . . . . . 2 . . . . 2 . . . 2 3 . . . . . Impale 6 | . . . . . . . . . . . . . . . . . . . . . . . . . 3 3 . Melee Attacks 462 | . . . . . 48 . . 48 . 43 . 27 2 10 6 . 50 8 . 14 13 54 2 44 49 44 . Impact 91 | . . . . . . . . 19 . . . . . . . . . . . . . 35 1 14 13 9 . Slashing 288 | . . . . . 48 . . 29 . 43 . 27 2 10 6 . 50 8 . 14 13 19 1 18 . . . Piercing 83 | . . . . . . . . . . . . . . . . . . . . . . . . 12 36 35 . Sneak Attacks 60 | . . . . . 1 . . 5 . 5 . 10 . 2 . . 3 2 . 2 . 10 . 5 11 4 . Combat Hostiles 7 | . . . . . . . . . . . . 4 . 2 . . . 1 . . . . . . . . . Follow-up Attacks 27 | . . . . . . . . . . . . . . . . . 2 . . . 1 13 . 6 2 3 . Damage Inflicted 27616 | . . 324 1056 . 2048 111 1996 3023 . 1993 . 3014 . 250 . 319 1410 221 670 190 290 2155 . 1456 1730 1616 3744 Guns 2497 | . . 267 360 . . 111 1145 486 . . . . . . . . . . . . . . . . . . 128 Cannons 6390 | . . 36 680 . . . 233 605 . 1091 . 512 . . . 319 . . . . . . . . . 128 2786 Explosions 4924 | . . . . . . . 583 712 . 18 . 1475 . . . . . . 670 . . . . . 185 453 828 Melee 13712 | . . . . . 2048 . . 1201 . 884 . 1027 . 250 . . 1410 221 . 190 290 2155 . 1456 1545 1035 . Ramming 93 | . . 21 16 . . . 35 19 . . . . . . . . . . . . . . . . . . 2 Kinetic 7486 | . . 165 680 . . 111 1145 948 . 1091 . 512 . . . 319 . . . . . . . . . . 2515 Thermal 1992 | . . 138 360 . . . 233 143 . . . 990 . . . . . . . . . . . . . . 128 Explosive 3934 | . . . . . . . 583 712 . 18 . 485 . . . . . . 670 . . . . . 185 453 828 Electromagnetic 399 | . . . . . . . . . . . . . . . . . . . . . . . . . . 128 271 Impact 2536 | . . . . . . . . 40 . . . . . . . . . . . . . 1630 . 597 64 205 . Slashing 8525 | . . . . . 2048 . . 1161 . 884 . 1027 . 250 . . 1410 221 . 190 290 525 . 519 . . . Piercing 2651 | . . . . . . . . . . . . . . . . . . . . . . . . 340 1481 830 . Highest Corruption 26 | . . . . . 4 4 . 2 11 12 12 1 1 1 1 1 . . . . . 14 22 22 . 6 26 Average Corruption 7 | . . . . . 4 4 . 1 5 11 12 1 1 1 1 1 . . . . . 9 19 22 . 4 12 Corruption Purged . | . . . . . . . . . . . . . . . . . . . . . . . . . . . . Corruption Blocked . | . . . . . . . . . . . . . . . . . . . . . . . . . . . . Effects 274 | . . . . . 18 4 . 12 . 67 4 3 6 3 . 1 . . . . . 14 4 32 . 12 94 Message Errors 62 | . . . . . 4 1 . 4 . 17 2 . . 1 . . . . . . . 2 . 8 . 5 18 Matter Fused 63 | . . . . . 3 1 . 3 . 16 2 . 2 1 . . . . . . . 3 2 5 . 4 21 Heat Flow Errors 23 | . . . . . 1 1 . 3 . 3 . . 2 . . . . . . . . 3 . . . . 10 Energy Discharges 36 | . . . . . 4 1 . . . 11 . 1 1 1 . . . . . . . 2 . 4 . . 11 Parts Rejected 2 | . . . . . . . . . . . . . . . . . . . . . . . . 1 . . 1 Parts Fused 3 | . . . . . . . . . . . . . . . . . . . . . . . . 1 . . 2 Data Loss (minor) 33 | . . . . . 5 . . . . 7 . 1 1 . . 1 . . . . . 3 1 3 . 2 9 Data Loss (major) 12 | . . . . . 1 . . 1 . 4 . 1 . . . . . . . . . . . 1 . 1 3 Misfires 3 | . . . . . . . . . . 1 . . . . . . . . . . . . . . . . 2 Alerts 4 | . . . . . . . . . . . . . . . . . . . . . . . . 1 . . 3 Misdirections 23 | . . . . . . . . . . 4 . . . . . . . . . . . 1 1 8 . . 9 Weapon Failures 10 | . . . . . . . . 1 . 4 . . . . . . . . . . . . . . . . 5 Overload Shots . | . . . . . . . . . . . . . . . . . . . . . . . . . . . . Overflow Damage 2803 | . . . . . 34 . 59 140 . 107 . 221 . 28 . 2 107 . 27 88 . 530 . 510 446 324 180 Projectiles 251 | . . . . . . . . . . 9 . 52 . . . 2 . . . . . . . . . 11 177 Explosions 222 | . . . . . . . 59 . . . . 133 . . . . . . 27 . . . . . . . 3 Melee 2330 | . . . . . 34 . . 140 . 98 . 36 . 28 . . 107 . . 88 . 530 . 510 446 313 . Knockbacks 37 | . . . 7 . . . . 2 . 4 . 2 . . . 1 . . . . . 6 . 1 . 1 13 Impact 9 | . . . 1 . . . . . . . . . . . . . . . . . . 6 . 1 . 1 . Kinetic 28 | . . . 6 . . . . 2 . 4 . 2 . . . 1 . . . . . . . . . . 13 Secondary . | . . . . . . . . . . . . . . . . . . . . . . . . . . . . Self-Inflicted Damage 319 | . . . . . . . 171 15 . 63 . . . . . . . . 27 . . . . . . . 43 Shots 9 | . . . . . . . 2 1 . 2 . . . . . . . . 1 . . . . . . . 3 Rammed 1 | . . . . . . . . . . . . . . . . . . . . . . . . . . . 1 Targets Rammed 17 | . . 5 4 . . . 6 1 . . . . . . . . . . . . . . . . . . 1 Kicked 16 | . . 5 4 . . . 6 1 . . . . . . . . . . . . . . . . . . . Crushed . | . . . . . . . . . . . . . . . . . . . . . . . . . . . . Highest Temperature 359 | . . 75 18 . 131 173 359 320 . 288 8 96 187 . 15 69 124 . . . 6 279 4 124 10 4 358 Average Temperature 63 | . . 40 13 . 66 87 94 80 . 53 5 27 80 . 10 34 55 . . . 4 124 4 37 2 3 66 Received Heat Transfer 1955 | . . 78 306 . 40 . 288 180 . 192 18 63 . 27 . . 152 . . 9 30 18 . 48 24 81 401 Effects 15 | . . . . . . . 6 3 . 4 . . . . . . . . . . . . . . . . 2 Energy Bleed 4 | . . . . . . . 3 . . 1 . . . . . . . . . . . . . . . . . Interference 11 | . . . . . . . 3 3 . 3 . . . . . . . . . . . . . . . . 2 Siege Activations . | . . . . . . . . . . . . . . . . . . . . . . . . . . . . Robots Corrupted 1 | . . . . . . . . . . . . . . . . . . . . . . . . . . . 1 Combat Hostiles 1 | . . . . . . . . . . . . . . . . . . . . . . . . . . . 1 Parts Fried 35 | . . . . . . . . 2 . . . . . . . . . . . . . 15 . 9 . 5 4 Impact Corruptions 31 | . . . . . . . . 1 . . . . . . . . . . . . . 18 . 6 . 6 . Robots Melted . | . . . . . . . . . . . . . . . . . . . . . . . . . . . . Combat Hostiles . | . . . . . . . . . . . . . . . . . . . . . . . . . . . . Parts Melted 2 | . . . . . . . 2 . . . . . . . . . . . . . . . . . . . . Heat Transferred 3141 | . . 407 1295 . . . 450 204 . . . 600 . . . . . . . . . . . . . . 185 Parts Sabotaged . | . . . . . . . . . . . . . . . . . . . . . . . . . . . . Parts Stolen 3 | . . . . . . . . . . . . . 2 . . . . 1 . . . . . . . . . Parts Stripped . | . . . . . . . . . . . . . . . . . . . . . . . . . . . . Power Chain Reactions . | . . . . . . . . . . . . . . . . . . . . . . . . . . . . Missiles Intercepted . | . . . . . . . . . . . . . . . . . . . . . . . . . . . . Alert | -11 -10 -10 -9 -9 -9 -8 -8 -7 -7 -7 -7 -6 -6 -6 -6 -5 -5 -5 -5 -5 -4 -4 -4 -4 -3 -3 -3 ------- Run | Jun Mat Min Mat Min Exi Min Mat Fac Was Fac Low Fac Low Low Zio Pro Fac Upp Upp War Pro Fac Was Fac Res Qua Sec Peak Influence 1231 | . 13 188 374 96 . 121 304 1231 419 810 . 714 . . . . 433 . . . . 560 121 391 548 553 975 Initial 419 | . . 4 . 96 . . 46 107 419 293 . 346 . . . . 125 . . . . 165 100 75 132 308 310 Average 347 | . 10 52 230 96 . 118 175 440 419 552 . 508 . . . . 227 . . . . 385 102 254 301 342 492 Maximum Alert Level 4 | . . . 1 . . . 1 4 2 3 . 3 . . . . 2 . . . . 2 . 1 2 2 3 Low Security (%) 32 | 100 100 100 21 100 . 100 61 53 . . . . . . . . 51 . . . . 2 100 23 21 7 . Level 1 35 | . . . 78 . . . 38 12 . 16 . 31 . . . . 40 . . . . 45 . 76 62 69 39 Level 2 23 | . . . . . . . . 4 100 68 . 60 . . . . 8 . . . . 52 . . 15 23 43 Level 3 6 | . . . . . . . . 15 . 15 . 8 . . . . . . . . . . . . . . 17 Level 4 2 | . . . . . . . . 14 . . . . . . . . . . . . . . . . . . . Level 5 . | . . . . . . . . . . . . . . . . . . . . . . . . . . . . High Security . | . . . . . . . . . . . . . . . . . . . . . . . . . . . . Max Security . | . . . . . . . . . . . . . . . . . . . . . . . . . . . . Squads Dispatched 66 | . 1 . 1 . . . 2 9 . 13 . 7 . . . . 10 . . . . 4 . 3 4 2 10 Investigation 22 | . . . 1 . . . . 1 . 4 . 4 . . . . 6 . . . . 1 . 3 1 . 1 Extermination 13 | . . . . . . . . 1 . 4 . 1 . . . . 2 . . . . . . . . 2 3 Reinforcement 24 | . 1 . . . . . 2 4 . 5 . 2 . . . . 1 . . . . 3 . . 3 . 3 Assault 2 | . . . . . . . . 2 . . . . . . . . . . . . . . . . . . . Garrison 5 | . . . . . . . . 1 . . . . . . . . 1 . . . . . . . . . 3 Intercept . | . . . . . . . . . . . . . . . . . . . . . . . . . . . . Searches Triggered 15 | . . . . . . . . . . 3 . 2 . . . . . . . . . 3 . . 1 2 4 Construction Impeded 7 | . . . . . . . 1 2 . 2 . . . . . . . . . . . 1 . . . . 1 Haulers Reinforced 10 | . . . . . . . . . . 2 . 1 . . . . 1 . . . . 2 . . 3 . 1 Active Scanning Responses . | . . . . . . . . . . . . . . . . . . . . . . . . . . . . Cargo Convoy Interrupts 1 | . . . . . . . . 1 . . . . . . . . . . . . . . . . . . . Stealth | -11 -10 -10 -9 -9 -9 -8 -8 -7 -7 -7 -7 -6 -6 -6 -6 -5 -5 -5 -5 -5 -4 -4 -4 -4 -3 -3 -3 --------- Run | Jun Mat Min Mat Min Exi Min Mat Fac Was Fac Low Fac Low Low Zio Pro Fac Upp Upp War Pro Fac Was Fac Res Qua Sec Distress Signals 21 | . . . 4 . . . . 3 . . . 1 . . . . 1 . . 1 . 3 . . 2 . 6 Communications Jammed . | . . . . . . . . . . . . . . . . . . . . . . . . . . . . Distress Signals . | . . . . . . . . . . . . . . . . . . . . . . . . . . . . Times Spotted 629 | . 1 7 22 . 16 4 30 64 3 63 4 31 4 11 . 7 47 4 11 48 4 39 2 14 48 39 106 Peak Tracking Total 20 | . 1 3 5 . 9 4 4 11 3 13 4 7 2 5 . 4 9 2 6 18 4 8 1 6 18 8 20 Tactical Retreats 129 | . . . 3 . 3 . 3 14 . 15 2 10 . 2 . . 12 2 2 1 . 8 . 5 11 10 26 Traps | -11 -10 -10 -9 -9 -9 -8 -8 -7 -7 -7 -7 -6 -6 -6 -6 -5 -5 -5 -5 -5 -4 -4 -4 -4 -3 -3 -3 ------- Run | Jun Mat Min Mat Min Exi Min Mat Fac Was Fac Low Fac Low Low Zio Pro Fac Upp Upp War Pro Fac Was Fac Res Qua Sec Traps Triggered 19 | . . . 1 . . . 1 3 . 3 . 1 . . . . 4 . . . . 3 . 1 . 1 1 Indirectly . | . . . . . . . . . . . . . . . . . . . . . . . . . . . . Trap Hack Attempts . | . . . . . . . . . . . . . . . . . . . . . . . . . . . . Triggered . | . . . . . . . . . . . . . . . . . . . . . . . . . . . . Disarmed . | . . . . . . . . . . . . . . . . . . . . . . . . . . . . Reprogrammed . | . . . . . . . . . . . . . . . . . . . . . . . . . . . . Reused . | . . . . . . . . . . . . . . . . . . . . . . . . . . . . Traps Extracted . | . . . . . . . . . . . . . . . . . . . . . . . . . . . . Installed . | . . . . . . . . . . . . . . . . . . . . . . . . . . . . Triggered 14 | . . . . . . . . . . . . . . 2 . 1 . 1 . 10 . . . . . . . Machines | -11 -10 -10 -9 -9 -9 -8 -8 -7 -7 -7 -7 -6 -6 -6 -6 -5 -5 -5 -5 -5 -4 -4 -4 -4 -3 -3 -3 ---------- Run | Jun Mat Min Mat Min Exi Min Mat Fac Was Fac Low Fac Low Low Zio Pro Fac Upp Upp War Pro Fac Was Fac Res Qua Sec Machines Disabled 41 | . . 1 2 . . 1 3 8 . 2 . 9 . 1 . . 1 . . . . 1 . . . 4 8 Max in Single Turn 5 | . . 1 1 . . 1 1 2 . 1 . 5 . 1 . . 1 . . . . 1 . . . 1 1 Garrison Access 10 | . . . . . . . 1 4 . . . 2 . . . . . . . . . 1 . 1 1 . . Machines Repaired . | . . . . . . . . . . . . . . . . . . . . . . . . . . . . Machines Sabotaged . | . . . . . . . . . . . . . . . . . . . . . . . . . . . . Overloaded Fab Kills . | . . . . . . . . . . . . . . . . . . . . . . . . . . . . Hacking | -11 -10 -10 -9 -9 -9 -8 -8 -7 -7 -7 -7 -6 -6 -6 -6 -5 -5 -5 -5 -5 -4 -4 -4 -4 -3 -3 -3 --------- Run | Jun Mat Min Mat Min Exi Min Mat Fac Was Fac Low Fac Low Low Zio Pro Fac Upp Upp War Pro Fac Was Fac Res Qua Sec Machines Accessed 87 | . 1 1 . . 2 . 4 13 . 15 . 15 . 2 . . 10 . . 7 . 7 . 3 4 3 . Terminals 26 | . 1 1 . . . . 2 6 . 7 . 9 . . . . . . . . . . . . . . . Fabricators 13 | . . . . . . . . 2 . 2 . 3 . . . . 4 . . . . 1 . . 1 . . Repair Stations 14 | . . . . . . . . . . 4 . 1 . . . . 2 . . . . 3 . 2 1 1 . Recycling Units . | . . . . . . . . . . . . . . . . . . . . . . . . . . . . Scanalyzers 7 | . . . . . . . 1 1 . 1 . . . . . . 1 . . . . 1 . . 1 1 . Garrison Access 16 | . . . . . . . 1 4 . 1 . 2 . . . . 3 . . . . 2 . 1 1 1 . Total Hacks 218 | . 4 1 . . 2 . 13 29 . 39 . 35 . 8 . . 23 . . 16 . 28 . 6 7 7 . Successful 119 | . 2 1 . . 2 . 6 15 . 20 . 18 . 8 . . 10 . . 16 . 13 . 2 3 3 . Failed 99 | . 2 . . . . . 7 14 . 19 . 17 . . . . 13 . . . . 15 . 4 4 4 . Catastrophic 15 | . . . . . . . 2 2 . 1 . 3 . . . . 3 . . . . 3 . . 1 . . Database Lockouts . | . . . . . . . . . . . . . . . . . . . . . . . . . . . . Manual 191 | . 4 . . . 3 . 10 12 . 11 . 18 . . . . 27 . . . . 37 . 21 11 29 8 Terminals 67 | . 4 1 . . . . 9 14 . 19 . 20 . . . . . . . . . . . . . . . Fabricators 33 | . . . . . . . . 4 . 5 . 11 . . . . 9 . . . . 2 . . 2 . . Repair Stations 38 | . . . . . . . . . . 11 . 2 . . . . 6 . . . . 9 . 5 2 3 . Recycling Units . | . . . . . . . . . . . . . . . . . . . . . . . . . . . . Scanalyzers 24 | . . . . . . . 3 3 . 2 . . . . . . 2 . . . . 11 . . 2 1 . Garrison Access 30 | . . . . . . . 1 8 . 2 . 2 . . . . 6 . . . . 6 . 1 1 3 . Terminal Hacks 41 | . 1 1 . . 2 . 2 4 . 3 . 4 . 8 . . . . . 16 . . . . . . . Record 17 | . . . . . 1 . . . . . . . . 7 . . . . . 9 . . . . . . . Part Schematic 1 | . . . . . . . . 1 . . . . . . . . . . . . . . . . . . . Prototype ID Bank 5 | . . . . . . . . . . . . . . . . . . . . 5 . . . . . . . Open Door 3 | . . . . . . . . . . . . . . 1 . . . . . 2 . . . . . . . Branch Access Points 2 | . 1 . . . . . . . . . . 1 . . . . . . . . . . . . . . . Repair Station Index 1 | . . . . . . . . . . . . 1 . . . . . . . . . . . . . . . Alert Level 1 | . . . . . . . . 1 . . . . . . . . . . . . . . . . . . . Hauler Manifests 4 | . . . . . . . 1 1 . 1 . 1 . . . . . . . . . . . . . . . Registered Components 3 | . . . . . . . 1 1 . 1 . . . . . . . . . . . . . . . . . Zone Layout 3 | . . 1 . . . . . . . 1 . 1 . . . . . . . . . . . . . . . EX-Prototype ID Bank 1 | . . . . . 1 . . . . . . . . . . . . . . . . . . . . . . Fabricator Hacks 14 | . . . . . . . . 1 . 2 . 6 . . . . 4 . . . . 1 . . . . . Network Status 3 | . . . . . . . . . . 1 . 1 . . . . . . . . . 1 . . . . . Load Schematic 6 | . . . . . . . . . . . . 3 . . . . 3 . . . . . . . . . . Build 5 | . . . . . . . . 1 . 1 . 2 . . . . 1 . . . . . . . . . . Repair Station Hacks 20 | . . . . . . . . . . 8 . 2 . . . . 4 . . . . 2 . 1 1 2 . Scan Component 12 | . . . . . . . . . . 4 . 1 . . . . 2 . . . . 2 . 1 1 1 . Repair 8 | . . . . . . . . . . 4 . 1 . . . . 2 . . . . . . . . 1 . Recycling Unit Hacks . | . . . . . . . . . . . . . . . . . . . . . . . . . . . . Scanalyzer 17 | . . . . . . . 1 2 . 2 . . . . . . 2 . . . . 8 . . 1 1 . Insert Component 10 | . . . . . . . 1 1 . 1 . . . . . . 1 . . . . 4 . . 1 1 . Analyze 7 | . . . . . . . . 1 . 1 . . . . . . 1 . . . . 4 . . . . . Garrison Access Hacks 8 | . . . . . . . 1 2 . . . 2 . . . . . . . . . 1 . 1 1 . . Seal Access 8 | . . . . . . . 1 2 . . . 2 . . . . . . . . . 1 . 1 1 . . Unauthorized Hacks 18 | . 1 . . . . . 1 6 . 5 . 4 . . . . . . . . . 1 . . . . . Terminals 14 | . 1 . . . . . 1 4 . 4 . 4 . . . . . . . . . . . . . . . Track 2 | . . . . . . . . 1 . 1 . . . . . . . . . . . . . . . . . Assimilate 1 | . . . . . . . . . . . . 1 . . . . . . . . . . . . . . . Botnet 11 | . 1 . . . . . 1 3 . 3 . 3 . . . . . . . . . . . . . . . Fabricators 4 | . . . . . . . . 2 . 1 . . . . . . . . . . . 1 . . . . . Liberate 1 | . . . . . . . . 1 . . . . . . . . . . . . . . . . . . . Haulers 3 | . . . . . . . . 1 . 1 . . . . . . . . . . . 1 . . . . . Repair Stations . | . . . . . . . . . . . . . . . . . . . . . . . . . . . . Recycling Units . | . . . . . . . . . . . . . . . . . . . . . . . . . . . . Scanalyzers . | . . . . . . . . . . . . . . . . . . . . . . . . . . . . Garrison Access . | . . . . . . . . . . . . . . . . . . . . . . . . . . . . Data Cores Recovered 3 | . . . . . . . . 1 . 1 . . . . . . . . . . . . . 1 . . . Used . | . . . . . . . . . . . . . . . . . . . . . . . . . . . . Hacking Detections 60 | . 1 . . . . . 2 11 . 14 . 10 . . . . 8 . . . . 6 . 2 3 3 . Full Trace Events 17 | . . . . . . . . 1 . 4 . 4 . . . . 5 . . . . . . 2 1 . . Feedback Events 1 | . . . . . . . . . . . . 1 . . . . . . . . . . . . . . . Corruption 1 | . . . . . . . . . . . . 1 . . . . . . . . . . . . . . . Feedback Blocked . | . . . . . . . . . . . . . . . . . . . . . . . . . . . . Robot Schematics Acquired 13 | . . . . . . . . . . . . . . . 4 . . . . . . . . . . 9 . Robots Built 3 | . . . . . . . . 3 . . . . . . . . . . . . . . . . . . . Authchips . | . . . . . . . . . . . . . . . . . . . . . . . . . . . . Time 67 | . . . . . . . . 67 . . . . . . . . . . . . . . . . . . . Total Robot Build Rating 12 | . . . . . . . . 12 . . . . . . . . . . . . . . . . . . . Part Schematics Acquired 95 | . . . . . . . . 2 . 1 . . . . 14 . 24 . . . . 23 . 11 8 1 11 Parts Built 5 | . . . . . . . . . . 2 . 2 . . . . 1 . . . . . . . . . . Authchips . | . . . . . . . . . . . . . . . . . . . . . . . . . . . . Time 427 | . . . . . . . . . . 47 . 228 . . . . 152 . . . . . . . . . . Total Part Build Rating 25 | . . . . . . . . . . 10 . 10 . . . . 5 . . . . . . . . . . Parts Repaired 8 | . . . . . . . . . . 4 . 1 . . . . 2 . . . . . . . . 1 . Time 347 | . . . . . . . . . . 209 . 38 . . . . 57 . . . . . . . . 43 . Parts Recycled . | . . . . . . . . . . . . . . . . . . . . . . . . . . . . Recycled Matter . | . . . . . . . . . . . . . . . . . . . . . . . . . . . . Retrieved Matter . | . . . . . . . . . . . . . . . . . . . . . . . . . . . . Retrieved Components . | . . . . . . . . . . . . . . . . . . . . . . . . . . . . Parts Scanalyzed 8 | . . . . . . . 1 1 . 1 . . . . . . 1 . . . . 3 . . 1 . . Part Schematics Acquired 6 | . . . . . . . . 1 . 1 . . . . . . 1 . . . . 3 . . . . . Parts Damaged 3 | . . . . . . . . . . 1 . . . . . . 1 . . . . 1 . . . . . Bothacking | -11 -10 -10 -9 -9 -9 -8 -8 -7 -7 -7 -7 -6 -6 -6 -6 -5 -5 -5 -5 -5 -4 -4 -4 -4 -3 -3 -3 ------------ Run | Jun Mat Min Mat Min Exi Min Mat Fac Was Fac Low Fac Low Low Zio Pro Fac Upp Upp War Pro Fac Was Fac Res Qua Sec Used RIF Installer . | . . . . . . . . . . . . . . . . . . . . . . . . . . . . Robots Hacked . | . . . . . . . . . . . . . . . . . . . . . . . . . . . . Non-combat . | . . . . . . . . . . . . . . . . . . . . . . . . . . . . Combat . | . . . . . . . . . . . . . . . . . . . . . . . . . . . . Robot Hacks Applied . | . . . . . . . . . . . . . . . . . . . . . . . . . . . . Relay Couplers Released 3 | . . . . . . . . 3 . . . . . . . . . . . . . . . . . . . Machine Destruction 3 | . . . . . . . . 3 . . . . . . . . . . . . . . . . . . . Fabnet Peak Effective % . | . . . . . . . . . . . . . . . . . . . . . . . . . . . . Robots Rewired 8 | . . . . . . . . . . . . . . 4 . . . . . 4 . . . . . . . Allies Hacked . | . . . . . . . . . . . . . . . . . . . . . . . . . . . . Hacks Repelled . | . . . . . . . . . . . . . . . . . . . . . . . . . . . . Allies | -11 -10 -10 -9 -9 -9 -8 -8 -7 -7 -7 -7 -6 -6 -6 -6 -5 -5 -5 -5 -5 -4 -4 -4 -4 -3 -3 -3 -------- Run | Jun Mat Min Mat Min Exi Min Mat Fac Was Fac Low Fac Low Low Zio Pro Fac Upp Upp War Pro Fac Was Fac Res Qua Sec Total Allies 52 | . . 3 . . . . . 6 . . 1 1 . 4 8 . 3 . . 4 . 1 20 1 . . . Largest Group 20 | . . 3 2 . . . . 3 . . 1 1 . 4 8 6 1 . . 4 . 1 20 1 . . . Highest-Rated Group 730 | . . 40 32 . . . . 93 . . 180 10 . 85 270 195 85 . . 209 . 50 730 27 . . . Highest-Rated Ally 180 | . . 16 16 . . . . 31 . . 180 10 . 25 40 40 85 . . 65 . 50 50 27 . . . Zionite Dispatches 4 | . . . . . . . . . . . . . . . . . 2 . . . . 1 . 1 . . . Heavy 1 | . . . . . . . . . . . . . . . . . 1 . . . . . . . . . . Demo 1 | . . . . . . . . . . . . . . . . . . . . . . 1 . . . . . Thermal Resupply 1 | . . . . . . . . . . . . . . . . . 1 . . . . . . . . . . Hacking Resupply 1 | . . . . . . . . . . . . . . . . . . . . . . . . 1 . . . Total Orders 7 | . . . . . . . . . . . . . . . . . 2 . . 3 . . . 2 . . . STAY 5 | . . . . . . . . . . . . . . . . . 1 . . 3 . . . 1 . . . DROP 2 | . . . . . . . . . . . . . . . . . 1 . . . . . . 1 . . . Ally Attacks 290 | . . 7 22 . . . . 71 . . . . . 7 . 28 5 . . 80 . 2 68 . . . . Total Damage 7946 | . . 38 310 . . . . 2169 . . . . . 186 . 509 287 . . 1887 . 323 2237 . . . . Kills 45 | . . 1 7 . . . . 8 . . . . . 2 . 7 2 . . 11 . 3 4 . . . . Allies Corrupted . | . . . . . . . . . . . . . . . . . . . . . . . . . . . . Allies Melted 2 | . . . . . . . . . . . . . . . . . . . . 2 . . . . . . . Turrets Deployed 1 | . . . . . . . . 1 . . . . . . . . . . . . . . . . . . . Intel | -11 -10 -10 -9 -9 -9 -8 -8 -7 -7 -7 -7 -6 -6 -6 -6 -5 -5 -5 -5 -5 -4 -4 -4 -4 -3 -3 -3 ------- Run | Jun Mat Min Mat Min Exi Min Mat Fac Was Fac Low Fac Low Low Zio Pro Fac Upp Upp War Pro Fac Was Fac Res Qua Sec Robot Analysis Total . | . . . . . . . . . . . . . . . . . . . . . . . . . . . . Derelict Logs Recovered 10 | . . 2 . . . . . . . . 1 . 3 2 1 . . . . . 1 . . . . . . Drone Launches . | . . . . . . . . . . . . . . . . . . . . . . . . . . . . Drone Recoveries . | . . . . . . . . . . . . . . . . . . . . . . . . . . . . Zionite Intel Received 33 | . . . . . . . . . . . . . . . . . 6 . . . . 9 . 4 3 9 2 Main Access 1 | . . . . . . . . . . . . . . . . . . . . . . 1 . . . . . Branch Access 2 | . . . . . . . . . . . . . . . . . . . . . . 1 . 1 . . . Emergency Access 3 | . . . . . . . . . . . . . . . . . 1 . . . . 1 . . . 1 . Guard Positions 1 | . . . . . . . . . . . . . . . . . . . . . . 1 . . . . . Component Stockpiles 3 | . . . . . . . . . . . . . . . . . 1 . . . . 1 . . . 1 . Prototype Stockpiles 3 | . . . . . . . . . . . . . . . . . . . . . . . . 1 . 1 1 Component Schematics 1 | . . . . . . . . . . . . . . . . . . . . . . 1 . . . . . Prototype Schematics 6 | . . . . . . . . . . . . . . . . . 2 . . . . 1 . 1 1 . 1 Unaware Schematics 2 | . . . . . . . . . . . . . . . . . . . . . . . . . . 2 . Unaware Analyses 2 | . . . . . . . . . . . . . . . . . . . . . . 1 . 1 . . . Trap Installations 2 | . . . . . . . . . . . . . . . . . . . . . . . . . 1 1 . Active Terminals 1 | . . . . . . . . . . . . . . . . . 1 . . . . . . . . . . Active Garrisons 4 | . . . . . . . . . . . . . . . . . 1 . . . . 1 . . 1 1 . Depthwide Sectors/0 1 | . . . . . . . . . . . . . . . . . . . . . . . . . . 1 . Depthwide Sectors/-1 1 | . . . . . . . . . . . . . . . . . . . . . . . . . . 1 . Exploration | -11 -10 -10 -9 -9 -9 -8 -8 -7 -7 -7 -7 -6 -6 -6 -6 -5 -5 -5 -5 -5 -4 -4 -4 -4 -3 -3 -3 ------------- Run | Jun Mat Min Mat Min Exi Min Mat Fac Was Fac Low Fac Low Low Zio Pro Fac Upp Upp War Pro Fac Was Fac Res Qua Sec Turns Passed 19128 | 71 133 730 509 188 1592 215 1806 2037 23 1437 104 1000 325 416 439 172 1132 238 270 925 243 802 48 552 599 1034 2088 Spaces Moved 31621 | 56 102 521 264 140 1177 165 1006 3144 74 3223 361 1806 1163 976 963 356 2118 737 574 1274 589 2161 170 1421 1555 2373 3152 Core 43 | 12 . . . . 27 . . . . . . . . . . . . . . 4 . . . . . . . Treads . | . . . . . . . . . . . . . . . . . . . . . . . . . . . . Legs 3830 | 44 102 521 264 140 1075 165 1006 513 . . . . . . . . . . . . . . . . . . . Wheels . | . . . . . . . . . . . . . . . . . . . . . . . . . . . . Hover . | . . . . . . . . . . . . . . . . . . . . . . . . . . . . Flight 27729 | . . . . . 75 . . 2631 74 3223 361 1806 1163 976 963 356 2118 737 574 1270 589 2161 170 1421 1555 2373 3133 Fastest Speed 18 | 50 120 120 120 120 37 120 120 25 25 25 27 22 22 22 25 22 22 26 26 24 28 25 24 20 23 22 18 Average Speed 38 | 105 120 120 120 120 114 120 157 41 25 25 27 25 24 24 25 23 25 26 28 29 28 25 24 25 23 22 23 Slowest Speed 500 | 120 120 120 120 120 120 120 190 318 25 27 27 27 25 27 25 25 26 26 34 500 28 28 25 29 98 92 102 Overloaded Moves . | . . . . . . . . . . . . . . . . . . . . . . . . . . . . Propulsion Burnouts . | . . . . . . . . . . . . . . . . . . . . . . . . . . . . Robots Hopped 157 | . . . . . . . . 9 . 44 . 10 2 . . . 18 . 1 . . 7 . 10 11 27 18 Cave-ins Triggered . | . . . . . . . . . . . . . . . . . . . . . . . . . . . . Teleports 1 | . . . . . . . . . . . . . . . . . . . . . . . . . . . 1 Spacefolds 7 | . . . . . . . . . . . . . . . . . . . . . . . . . . . 7 Exploration Rate (%) 61 | 4 27 81 18 36 79 59 67 48 77 65 45 48 89 74 90 50 48 86 71 90 65 76 89 35 35 96 60 Regions Visited 27 Branch Regions 15 Pre-discovered Areas 10 | . . 1 . . 1 . . . . . . . 1 1 . . . . . . . . . . . 6 . Known Exits Taken 16 | . 1 . . . . . . . . 1 1 1 1 1 1 1 1 1 1 1 1 . . 1 1 1 . Unknown Exits Taken 7 | 1 . 1 1 1 1 1 1 . . . . . . . . . . . . . . . . . . . . Scrap Searched 26 | . . 2 . . . . . . . . 1 . 7 3 4 . . 3 4 . 2 . . . . . . Spaces Dug 134 | . . . . . . . 2 20 . 26 . 8 . 2 . . 10 2 . 7 4 7 1 8 17 12 8 Terrain Destroyed 680 | . . . . . . 1 63 99 . 78 . 129 . 2 . 3 10 2 109 7 4 7 1 8 19 42 96 Melee 105 | . . . . . . . . 18 . 14 . 7 . 2 . . 10 2 . 7 4 7 1 8 17 8 . Projectile 92 | . . . . . . 1 26 11 . 19 . 2 . . . 3 . . . . . . . . . 8 22 AOE 482 | . . . . . . . 36 70 . 45 . 120 . . . . . . 109 . . . . . 2 26 74 Terrain Rammed . | . . . . . . . . . . . . . . . . . . . . . . . . . . . . Walls Destroyed . | . . . . . . . . . . . . . . . . . . . . . . . . . . . . Machines Disabled . | . . . . . . . . . . . . . . . . . . . . . . . . . . . . Actions | -11 -10 -10 -9 -9 -9 -8 -8 -7 -7 -7 -7 -6 -6 -6 -6 -5 -5 -5 -5 -5 -4 -4 -4 -4 -3 -3 -3 --------- Run | Jun Mat Min Mat Min Exi Min Mat Fac Was Fac Low Fac Low Low Zio Pro Fac Upp Upp War Pro Fac Was Fac Res Qua Sec Total 37334 | 65 114 591 356 157 1369 172 1153 3715 77 3643 366 2256 1195 1138 1148 430 2621 773 669 1809 649 2338 176 1551 1713 2774 4316 Wait 4043 | . . 35 13 15 85 3 17 333 . 294 5 343 25 102 178 61 381 27 67 462 42 90 . 69 114 326 956 Move 31286 | 55 101 520 263 139 1176 164 1005 3127 73 3140 360 1786 1158 975 962 355 2083 736 571 1273 588 2147 169 1402 1533 2321 3104 Hop 139 | . . . . . . . . 8 . 38 . 9 2 . . . 16 . 1 . . 7 . 8 10 24 16 Pick Up 141 | 4 5 3 6 . 19 . 21 14 . 12 . 5 3 8 1 1 12 1 2 5 1 3 1 2 2 7 3 Fast Attach 196 | 6 1 2 3 . 11 . 9 22 2 5 1 9 . 3 . . 15 1 8 12 3 12 2 15 4 11 39 Attach 69 | . 1 . 2 . 6 . 1 16 . 5 . 5 . 2 . 1 4 . 2 2 . 1 . 1 2 6 12 Detach 57 | . 2 . . . 4 . 2 9 . 3 . 5 1 1 . . 4 . 2 6 . 2 . 4 . 6 6 Swap 128 | . 1 2 5 . 8 . 7 25 . 12 . 12 1 . . 1 9 . 5 3 . 4 . 4 7 9 13 Drop 248 | . 3 6 9 . 12 . 17 43 2 11 . 14 3 9 . . 19 2 6 14 4 11 3 16 4 16 24 Fire 448 | . . 18 51 3 . 5 68 65 . 61 . 23 . . 1 11 . . 5 . . . . . 1 16 120 Melee 393 | . . . . . 48 . . 47 . 43 . 27 2 10 6 . 45 6 . 13 11 36 1 30 36 32 . Ram 1 | . . . . . . . . . . . . . . . . . . . . . . . . . . . 1 Kick 16 | . . 5 4 . . . 6 1 . . . . . . . . . . . . . . . . . . . Crush . | . . . . . . . . . . . . . . . . . . . . . . . . . . . . Escape Stasis 122 | . . . . . . . . 5 . 19 . 18 . . . . 33 . . . . 25 . . . . 22 Rewire 47 | . . . . . . . . . . . . . . 28 . . . . . 19 . . . . . . . Trap . | . . . . . . . . . . . . . . . . . . . . . . . . . . . . Miscellaneous . | . . . . . . . . . . . . . . . . . . . . . . . . . . . . Route ------- -11/Junkyard -10/Materials (discovered 2 exits: *Min x2) -10/Mines (discovered 2 exits: [*Mat x2]) -9/Materials -9/Mines -9/Exiles -8/Mines -8/Materials (discovered 2 exits: *Fac x2) -7/Factory (discovered 4 exits: *Fac x2 / Sto / *Low) -7/Waste -7/Factory (discovered 5 exits: *Fac x3 / *Sto / *Low) -7/Lower Caves (discovered 2 exits: Low / *Fac) -6/Factory (discovered 3 exits: *Fac / *Low x2) -6/Lower Caves -6/Lower Caves -6/Zion -5/Proximity Caves -5/Factory (discovered 2 exits: *Fac / *Upp) -5/Upper Caves -5/Upper Caves -5/Warlord -4/Proximity Caves -4/Factory (discovered 8 exits: *Res x4 / *Upp x2 / *Ext x2) -4/Waste -4/Factory (discovered 6 exits: *Res x2 / *Upp x2 / Ext x2) -3/Research (discovered 2 exits: *Res / *Qua) -3/Quarantine (discovered 2 exits: *Res / *Sec) -3/Section 7 (discovered 1 exit: *Res) History --------- Turn | Location | Event 3 | -11/Junkyard | Discovered new exit (range 15) 72 | -11/Junkyard | Entered Materials 97 | -10/Materials | Identified exit to Mines 205 | -10/Materials | Entered Mines 303 | -10/Mines | Build established: Mutant 396 | -10/Mines | Learned location of Zion (-6) 404 | -10/Mines | Found a damaged Exp. Sensor Array with a note attached 407 | -10/Mines | Found Prototype Device 499 | -10/Mines | Assisted by bots powering up and referring to "LRC-V3" 565 | -10/Mines | Discovered new exit (range 7) 921 | -10/Mines | Discovered new exit (range 6) 935 | -10/Mines | Entered Materials 935 | -9/Materials | Accompanied by 2 allies 935 | -9/Materials | Evolved 2 slots: Propulsion x1, Utility x1 1347 | -9/Materials | Discovered new exit (range 9) 1444 | -9/Materials | Entered Mines 1451 | -9/Mines | Assembled infested the area 1482 | -9/Mines | Build established: Scavenger-Mutant 1626 | -9/Mines | Discovered new exit (range 5) 1632 | -9/Mines | Entered Exiles 1662 | -9/Exiles | Met 8R-AWN 1680 | -9/Exiles | Met EX-HEX 1714 | -9/Exiles | Met EX-BIN 1728 | -9/Exiles | Aligned with FarCom system 1730 | -9/Exiles | Given EX-Vault access code 1757 | -9/Exiles | Opened EX-Vault 1775 | -9/Exiles | Warned to stay clear of 0b10 Research branches 1817 | -9/Exiles | Met EX-DEC 1962 | -9/Exiles | Discovered new exit (range 14) 2092 | -9/Exiles | Found Superbattery 2096 | -9/Exiles | Found Longsword +1 2310 | -9/Exiles | Destroyed EX-DEC 2311 | -9/Exiles | Attacked by the Exiles 2377 | -9/Exiles | Destroyed 7 combat bots 2422 | -9/Exiles | Core integrity fell below 50% 2436 | -9/Exiles | Core integrity fell below 20% 2448 | -9/Exiles | Destroyed 8R-AWN 2461 | -9/Exiles | Lost 8 parts (1p4n2u1w) 2474 | -9/Exiles | Found Prototype Ballistic Gun 2474 | -9/Exiles | Identified 8R-AWN's Boregun 2688 | -9/Exiles | Found Prototype Protection 2705 | -9/Exiles | Identified 8R-AWN's Armor/EX 2762 | -9/Exiles | Found Deploy-a-Sentry 3224 | -9/Exiles | Stole three prototypes: Superbattery, Longsword +1, Deploy-a-Sentry 3224 | -9/Exiles | Entered Mines 3434 | -8/Mines | Discovered new exit (range 4) 3439 | -8/Mines | Entered Materials 3439 | -8/Materials | Evolved 2 slots: Propulsion x1, Utility x1 3906 | -8/Materials | Discovered new exit (range 10) 4941 | -8/Materials | Identified Exp. Sensor Array 5069 | -8/Materials | Discovered new exit (range 16) 5245 | -8/Materials | Entered Factory 5245 | -7/Factory | Evolved 2 slots: Propulsion x1, Utility x1 5246 | -7/Factory | Identified exit to Storage 5925 | -7/Factory | Discovered new exit (range 2) 5927 | -7/Factory | Identified exit to Factory 6203 | -7/Factory | Discovered exit to Factory (range 10) 6308 | -7/Factory | Build established: Sprinter 6408 | -7/Factory | Fabricated B-48 Gladiator? 6596 | -7/Factory | Cargo convoy interrupted 6754 | -7/Factory | DAS Turret deployed 6813 | -7/Factory | Lost 5 parts (3n1u1w) 6850 | -7/Factory | Allied Derelicts emerged from ambush trap array 6981 | -7/Factory | Discovered new exit (range 4) 6984 | -7/Factory | Identified exit to Lower Caves 7086 | -7/Factory | Build established: Scavenger-Sprinter 7282 | -7/Factory | Manually triggered Chute Trap 7282 | -7/Factory | Sucked down chute 7282 | -7/Factory | Entered Waste 7296 | -7/Waste | Spotted C-40 Crusher 7296 | -7/Waste | Spotted C-40 Crusher 7296 | -7/Waste | Spotted C-40 Crusher 7297 | -7/Waste | EMP discharged 7297 | -7/Waste | System corruption reached 10% 7301 | -7/Waste | Discovered new exit (range 18) 7302 | -7/Waste | Spotted C-40 Crusher 7305 | -7/Waste | Identified exit to Factory 7305 | -7/Waste | Entered Factory 7393 | -7/Factory | Repaired Lgt. Antimatter Cannon 7514 | -7/Factory | Build established: Scavenger-Scout 7610 | -7/Factory | Fabricated Adv. Signal Interpreter? 7705 | -7/Factory | Search patrols dispatched 7723 | -7/Factory | Discovered exit to Factory (range 18) 7741 | -7/Factory | Core integrity fell below 50% 7867 | -7/Factory | Repaired Broken Biomechanical Wings 7905 | -7/Factory | Repaired Lgt. Nuclear Core? 7985 | -7/Factory | Discovered exit to Factory (range 11) 8028 | -7/Factory | Build established: Scout 8105 | -7/Factory | Search patrols dispatched 8273 | -7/Factory | Repaired Xenon Bombardment Thruster? 8278 | -7/Factory | Discovered exit to Factory (range 13) 8420 | -7/Factory | Discovered exit to Storage (range 18) 8439 | -7/Factory | Discovered exit to Lower Caves (range 8) 8505 | -7/Factory | Search patrols dispatched 8742 | -7/Factory | Entered Lower Caves 8774 | -7/Lower Caves | Identified exit to Lower Caves 8791 | -7/Lower Caves | Spotted B-75 Beast 8828 | -7/Lower Caves | 7V-RTL showed up to help 8830 | -7/Lower Caves | 7V-RTL revealed a hidden path 8846 | -7/Lower Caves | Entered Factory 8846 | -6/Factory | Evolved 2 slots: Propulsion x1, Utility x1 8857 | -6/Factory | Found Prototype Launcher 8857 | -6/Factory | Identified Rocket Array 8962 | -6/Factory | Identified exit to Lower Caves 9062 | -6/Factory | Discovered new exit (range 14) 9069 | -6/Factory | Identified exit to Factory 9148 | -6/Factory | Repaired Imp. Propulsion Shielding? 9196 | -6/Factory | Search patrols dispatched 9351 | -6/Factory | Fabricated Biomechanical Wings? 9422 | -6/Factory | Spotted B-75 Beast 9546 | -6/Factory | Search patrols dispatched 9646 | -6/Factory | Fabricated Biomechanical Wings? 9846 | -6/Factory | Entered Lower Caves 9846 | -6/Lower Caves | Spotted TL-9QE(f) 9846 | -6/Lower Caves | Spotted Q2-JYP(f) 9847 | -6/Lower Caves | Encountered a Master Thief 9847 | -6/Lower Caves | Encountered a Master Thief 9847 | -6/Lower Caves | Superbattery stolen by Master Thief 9854 | -6/Lower Caves | Lgt. Antimatter Cannon stolen by Master Thief 9874 | -6/Lower Caves | Learned Factory security intel 9934 | -6/Lower Caves | Learned Factory terminal intel 9983 | -6/Lower Caves | Discovered new exit (range 8) 10171 | -6/Lower Caves | Identified exit to Lower Caves 10171 | -6/Lower Caves | Entered another Lower Caves area 10193 | -6/Lower Caves | Attacked by a delusional Derelict stockpiling Unaware 10298 | -6/Lower Caves | Learned Factory garrison access intel 10302 | -6/Lower Caves | Learned 8 Research zone layouts 10302 | -6/Lower Caves | Learned Factory stockpile data 10302 | -6/Lower Caves | Learned Extension terminal intel 10373 | -6/Lower Caves | Learned Factory terminal intel 10384 | -6/Lower Caves | Spotted TX-79Q(f) 10384 | -6/Lower Caves | Spotted RM-JZ1(f) 10386 | -6/Lower Caves | Encountered a Master Thief 10386 | -6/Lower Caves | Encountered a Master Thief 10400 | -6/Lower Caves | Spotted 5D-2YX(f) 10401 | -6/Lower Caves | Encountered a Master Thief 10424 | -6/Lower Caves | Spotted 3U-PW7(f) 10425 | -6/Lower Caves | Encountered a Master Thief 10555 | -6/Lower Caves | Discovered new exit (range 14) 10558 | -6/Lower Caves | Identified exit to Zion 10587 | -6/Lower Caves | Entered Zion 10597 | -6/Zion | System corruption cleaned by Quarantine Array 10602 | -6/Zion | Discovered new exit (range 17) 10620 | -6/Zion | Identified exit to Proximity Caves 10674 | -6/Zion | Received a hallucinogenic algorithm 10708 | -6/Zion | Gained Derelict followers 10768 | -6/Zion | Given A8's code to call for help 10788 | -6/Zion | Visited the Megawrench Repair Shop 10788 | -6/Zion | Megawrench repaired 9 parts 10814 | -6/Zion | Imprinted 10816 | -6/Zion | Declared Zion's savior 11026 | -6/Zion | Entered Proximity Caves 11026 | -5/Proximity Caves | Accompanied by 6 allies 11197 | -5/Proximity Caves | Discovered exit to Factory (range 7) 11198 | -5/Proximity Caves | Entered Factory 11198 | -5/Factory | Evolved 2 slots: Power x1, Utility x1 11201 | -5/Factory | Loaded intel: 26 terminal locations 11202 | -5/Factory | Loaded intel: 4 garrison access locations 11355 | -5/Factory | Retrieved Zion intel report: Prototype Schematics 11433 | -5/Factory | Assembled infested ambush trap array 11501 | -5/Factory | Repaired Axe 11706 | -5/Factory | Zion Heavy squad teleported in 11912 | -5/Factory | Garrison activated, responded to threat 11938 | -5/Factory | Retrieved Zion intel report: Active Garrisons 11940 | -5/Factory | Retrieved Zion intel report: Component Stockpiles 11946 | -5/Factory | Retrieved Zion intel report: Prototype Schematics 11973 | -5/Factory | Assembled infested ambush trap array 11977 | -5/Factory | Retrieved Zion intel report: Emergency Access 12000 | -5/Factory | Retrieved Zion intel report: Active Terminals 12084 | -5/Factory | Discovered new exit (range 21) 12112 | -5/Factory | Discovered new exit (range 9) 12114 | -5/Factory | Identified exit to Factory 12143 | -5/Factory | Fabricated Biomechanical Wings? 12152 | -5/Factory | Zion Thermal Resupply teleported in 12255 | -5/Factory | Repaired Imp. Utility Shielding? 12330 | -5/Factory | Identified exit to Upper Caves 12330 | -5/Factory | Entered Upper Caves 12330 | -5/Upper Caves | Spotted BD-UU6(f) 12331 | -5/Upper Caves | Encountered a Master Thief 12331 | -5/Upper Caves | Mic. Fission Core stolen by Master Thief 12401 | -5/Upper Caves | Spotted B-75 Beast 12562 | -5/Upper Caves | Discovered new exit (range 5) 12567 | -5/Upper Caves | Identified exit to Upper Caves 12568 | -5/Upper Caves | Entered another Upper Caves area 12568 | -5/Upper Caves | Spotted BZ-UI8(f) 12568 | -5/Upper Caves | Spotted 8B-NXX(f) 12569 | -5/Upper Caves | Encountered a Master Thief 12569 | -5/Upper Caves | Encountered a Master Thief 12576 | -5/Upper Caves | Spotted ZP-Z97(f) 12577 | -5/Upper Caves | Encountered a Master Thief 12609 | -5/Upper Caves | Destroyed 8B-NXX(f) 12609 | -5/Upper Caves | Destroyed ZP-Z97(f) 12674 | -5/Upper Caves | Destroyed BZ-UI8(f) 12820 | -5/Upper Caves | Discovered new exit (range 5) 12821 | -5/Upper Caves | Identified exit to Warlord 12838 | -5/Upper Caves | Entered Warlord 12854 | -5/Warlord | Discovered new exit (range 14) 12981 | -5/Warlord | Learned Armory security intel 12981 | -5/Warlord | Learned Research fabricator intel 12981 | -5/Warlord | Learned 4 Quarantine zone layouts 13046 | -5/Warlord | Warlord's base attacked by MAIN.C 13084 | -5/Warlord | Rebuked by Warlord 13118 | -5/Warlord | Found Prototype Device 13118 | -5/Warlord | Identified Exp. Focal Shield 13120 | -5/Warlord | Found Prototype Processor 13120 | -5/Warlord | Identified Exp. Armor Integrity Analyzer 13125 | -5/Warlord | Found Prototype Hackware 13171 | -5/Warlord | Spotted B-75 Beast 13243 | -5/Warlord | Build established: Commander-Scout 13258 | -5/Warlord | Spotted B-86 Titan 13364 | -5/Warlord | Spotted Executioner 13368 | -5/Warlord | Spotted Striker 13396 | -5/Warlord | Warlord forces counterattacked 13488 | -5/Warlord | Spotted Executioner 13652 | -5/Warlord | Spotted Striker 13682 | -5/Warlord | Build established: Scavenger-Scout 13721 | -5/Warlord | Warlord base infiltrated, sounded retreat 13753 | -5/Warlord | Opened side exit 13757 | -5/Warlord | Spotted Executioner 13757 | -5/Warlord | Spotted Executioner 13762 | -5/Warlord | Identified exit to Proximity Caves 13763 | -5/Warlord | Entered Proximity Caves 13830 | -4/Proximity Caves | Encountered a Derelict sapper outpost 13851 | -4/Proximity Caves | Spotter reported a threat 14000 | -4/Proximity Caves | Discovered exit to Factory (range 4) 14006 | -4/Proximity Caves | Entered Factory 14006 | -4/Factory | Evolved 2 slots: Propulsion x1, Weapon x1 14007 | -4/Factory | Identified exit to Extension 14008 | -4/Factory | Loaded intel: 27 terminal locations 14112 | -4/Factory | Retrieved Zion intel report: Branch Access 14112 | -4/Factory | Identified exit to Upper Caves 14119 | -4/Factory | Retrieved Zion intel report: Component Schematics 14122 | -4/Factory | Retrieved Zion intel report: Emergency Access 14173 | -4/Factory | Retrieved Zion intel report: Unaware Analyses 14177 | -4/Factory | Spotted B-86 Titan 14185 | -4/Factory | Identified Ghost Barrier 14192 | -4/Factory | Discovered new exit (range 14) 14195 | -4/Factory | Identified exit to Research 14213 | -4/Factory | Retrieved Zion intel report: Active Garrisons 14256 | -4/Factory | Search patrols dispatched 14269 | -4/Factory | Retrieved Zion intel report: Main Access 14319 | -4/Factory | Retrieved Zion intel report: Prototype Schematics 14401 | -4/Factory | Retrieved Zion intel report: Guard Positions 14403 | -4/Factory | Retrieved Zion intel report: Component Stockpiles 14404 | -4/Factory | Zion Demo squad teleported in 14441 | -4/Factory | Spotted B-86 Titan 14477 | -4/Factory | Build established: Hacker-Scout 14506 | -4/Factory | Search patrols dispatched 14513 | -4/Factory | Found Prototype Launcher 14513 | -4/Factory | Identified Com. Tesla Bomb Launcher 14561 | -4/Factory | System corruption reached 10% 14756 | -4/Factory | Search patrols dispatched 14808 | -4/Factory | Manually triggered Chute Trap 14808 | -4/Factory | Sucked down chute 14808 | -4/Factory | Entered Waste 14809 | -4/Waste | Met a frightened Derelict 14809 | -4/Waste | Spotted C-40 Crusher 14823 | -4/Waste | EMP discharged 14825 | -4/Waste | Met Warlord forces unprepared to attack 14832 | -4/Waste | Spotted C-40 Crusher 14832 | -4/Waste | Spotted C-40 Crusher 14834 | -4/Waste | Spotted C-40 Crusher 14854 | -4/Waste | Discovered new exit (range 13) 14854 | -4/Waste | Spotted C-40 Crusher 14856 | -4/Waste | Identified exit to Factory 14856 | -4/Waste | Entered Factory 14897 | -4/Factory | Build established: Scavenger-Scout 14907 | -4/Factory | Retrieved Zion intel report: Branch Access 15008 | -4/Factory | Discovered exit to Research (range 8) 15018 | -4/Factory | Found Prototype Processor 15018 | -4/Factory | Identified Exp. Signal Interpreter 15075 | -4/Factory | Retrieved Zion intel report: Prototype Schematics 15151 | -4/Factory | Retrieved Zion intel report: Unaware Analyses 15152 | -4/Factory | Zion Hacking Resupply teleported in 15245 | -4/Factory | Build established: Scout 15387 | -4/Factory | Retrieved Zion intel report: Prototype Stockpiles 15401 | -4/Factory | Discovered exit to Research (range 4) 15408 | -4/Factory | Entered Research 15408 | -3/Research | Evolved 2 slots: Propulsion x1, Utility x1 15410 | -3/Research | Loaded intel: 4 fabricator locations 15429 | -3/Research | Spotted B-86 Titan 15462 | -3/Research | Retrieved Zion intel report: Trap Installations 15681 | -3/Research | Retrieved Zion intel report: Prototype Schematics 15725 | -3/Research | Discovered new exit (range 3) 15726 | -3/Research | Identified exit to Research 15774 | -3/Research | Spotted B-86 Titan 15908 | -3/Research | Search patrols dispatched 15916 | -3/Research | Retrieved Zion intel report: Active Garrisons 15982 | -3/Research | Discovered new exit (range 21) 15990 | -3/Research | Found Enh. Force Lance 16007 | -3/Research | Identified exit to Quarantine 16007 | -3/Research | Entered Quarantine 16027 | -3/Quarantine | Found Alien Artifact 16035 | -3/Quarantine | Identified Phase Redirector 16054 | -3/Quarantine | Discovered exit to Research (range 13) 16075 | -3/Quarantine | Retrieved Zion intel report: Active Garrisons 16126 | -3/Quarantine | Repaired Broken Nanoactuators 16201 | -3/Quarantine | Retrieved Zion intel report: Component Stockpiles 16206 | -3/Quarantine | Retrieved Zion intel report: Depthwide Sectors/0 16257 | -3/Quarantine | Search patrols dispatched 16275 | -3/Quarantine | Retrieved Zion intel report: Depthwide Sectors/-1 16293 | -3/Quarantine | Retrieved Zion intel report: Prototype Stockpiles 16295 | -3/Quarantine | Retrieved Zion intel report: Emergency Access 16304 | -3/Quarantine | Retrieved Zion intel report: Trap Installations 16385 | -3/Quarantine | Retrieved Zion intel report: Unaware Schematics 16488 | -3/Quarantine | Retrieved Zion intel report: Unaware Schematics 16714 | -3/Quarantine | Found Alien Artifact 16757 | -3/Quarantine | Search patrols dispatched 16795 | -3/Quarantine | Found Alien Artifact 16795 | -3/Quarantine | Identified Terrabomb 16795 | -3/Quarantine | Used Terrabomb 16861 | -3/Quarantine | Identified Subatomic Replicator 16988 | -3/Quarantine | Found Alien Energy Cannon 16988 | -3/Quarantine | Identified Core Cannon 16996 | -3/Quarantine | Found Alien Artifact 17021 | -3/Quarantine | Spotted Fortress 17040 | -3/Quarantine | Discovered new exit (range 6) 17040 | -3/Quarantine | Identified exit to Section 7 17041 | -3/Quarantine | Entered Section 7 17107 | -3/Section 7 | Retrieved Zion intel report: Prototype Stockpiles 17243 | -3/Section 7 | Found Prototype Processor 17243 | -3/Section 7 | Identified Spectral Analyzer 17291 | -3/Section 7 | Search patrols dispatched 17308 | -3/Section 7 | System corruption reached 10% 17310 | -3/Section 7 | Spotted S7 Guard 17335 | -3/Section 7 | Spotted B-86 Titan 17340 | -3/Section 7 | Found Alien Artifact 17340 | -3/Section 7 | Identified Integrated Thermoelectric Network 17340 | -3/Section 7 | Installed Integrated Thermoelectric Network, gained heat-energy exchange potential 17520 | -3/Section 7 | Found Alien Artifact 17581 | -3/Section 7 | Spotted S7 Guard 17601 | -3/Section 7 | Retrieved Zion intel report: Prototype Schematics 17791 | -3/Section 7 | Search patrols dispatched 18042 | -3/Section 7 | Identified Hpw. Transdimensional Reconstructor 18042 | -3/Section 7 | Warped through subspace 18064 | -3/Section 7 | Lost 7 parts (1p4n2u) 18086 | -3/Section 7 | Search patrols dispatched 18372 | -3/Section 7 | Terminal network hard line cut 18663 | -3/Section 7 | Core integrity fell below 50% 18696 | -3/Section 7 | Lost 3 parts (2n1u) 18866 | -3/Section 7 | Found Alien Artifact 18866 | -3/Section 7 | Identified Integrated Reactor 18866 | -3/Section 7 | Installed Integrated Reactor, increased core energy generation (+10) 18962 | -3/Section 7 | Discovered exit to Research (range 24) 18972 | -3/Section 7 | Found Alien Artifact 18972 | -3/Section 7 | Identified Spacefold Activator 19041 | -3/Section 7 | Search patrols dispatched 19061 | -3/Section 7 | Core integrity fell below 20% 19070 | -3/Section 7 | Lost 6 parts (2p2n2u) 19129 | -3/Section 7 | Core destroyed Last Messages --------------- 19079_ Slug penetrates Wall. 19085_ Spacefolded through Wall. 19086_ 9YH#2C3RHSFJZHB4GY9%WA8W XVBBVL|Z>5IHV 19088_ C-30 ARC bursts open, deploying its payload. 19088_ G-73 Enforcer unfolds itself. 19088_ G-67 Veteran unfolds itself. 19089_ Critical hit (Burn: +50). 19089_ Repair Station disabled. 19092_ System corrupted: Tri-rail Accelerator jammed. 19095_ Slug penetrates Wall. 19095_ Nuclear Pulse Array destroyed. 19095_ Slug penetrates Wall. 19095_ Penetrated by Slug. 19098_ Spacefolded through Wall. 19098_ K-01 Serf cleans the Thrusters. 19102_ JGPQBY/YBPK Map ----- +----------------------------------------------------+ | | | | | | | | | | | | | | | | | | | | | | | | | | | | | | | | | | | | | | | ?????????????????????????????????????????????????? | | ?????????????????????????????????????????????????? | | ?????????????????????????????????????????????????? | | ?????????????????????????????????????????????????? | | ????????????????##?######????????????????????????? | | ????????????????#!"#T T#"" #????????????????????? | | ????? """"""""?#!!" "@ !#????????????????????? | | ??? " #### #!"!#???????????? ??????? | | ??? ########"""#### ?????? | | ?" T ?????? | | """ ""?????? | | " "" "?????? | | " ?"" "?????? | | " " "" ????? | | " "" """" ????? | | " " """ "??" ????? | | " "" """" ?????? | | " " """" " " ?????? | | " "" " ??????? | | " """"""" ??????? | | " "????" ??????? | | " " """"""" """""""""""???????? | | "????????????????? | | " " " " ?????????? | | " ???????? | | """ ???????? | | " " " ???????? | | """"" ???????? | | "?" """" " " " ????????? | | """"" " " " " ""????????? | | " " " " " """ ?????????? | +----------------------------------------------------+ Best States ------------- Heat Dissipation 65 Energy Generation 49 Energy Capacity 1600 Matter Stores 300 Matter Capacity 300 Sight Range 24 Robot Scan Range 20 Terrain Scan Density 10 Power Amplification 40 Armor Coverage 150 Resistance: KI 30 Propulsion Shielding 66 Utility Shielding 66 Weapon Cycling 25 Melee Speed Boost 30 Phase Shifting 15 Evasion (%) 91 Melee Accuracy 8 Particle Charging 30 Kinecelleration 30 Offensive Hacking 14 Defensive Hacking 20 Item Schematics ----------------- Imp. Propulsion Shielding | -7/Factory | Scanalyzed Xenon Bombardment Thruster | -7/Factory | Hacked Biomechanical Wings | -7/Factory | Scanalyzed Neutrino Core | -6/Zion | Archive 0b10 Decoder Chip [Looter] | -6/Zion | Archive Hvy. Gauss Cannon | -6/Zion | Archive Myomer Leg | -6/Zion | Archive Proton Cannon | -6/Zion | Archive Phasing Sabre | -6/Zion | Archive Matter Compressor | -6/Zion | Archive Recoil Nullifier | -6/Zion | Archive Power Amplifier | -6/Zion | Archive Hyp. Gauss Cannon | -6/Zion | Archive Adv. Cooling System | -6/Zion | Archive Imp. Hardlight Generator | -6/Zion | Archive Imp. Core Shielding | -6/Zion | Archive Lrn. Proton Cannon | -6/Zion | Archive Prc. Matter Filter | -5/Factory | Z-intel Imp. Lightning Gun | -5/Factory | Z-intel Imp. Heavy Machine Gun | -5/Factory | Z-intel Exp. Heat Sink | -5/Factory | Z-intel Imp. Heavy Laser | -5/Factory | Z-intel Imp. Energy Well | -5/Factory | Z-intel Enh. Fission Core | -5/Factory | Z-intel Cld. Nuclear Pulse Thruster | -5/Factory | Z-intel Shock Maul | -5/Factory | Z-intel F-cell Engine | -5/Factory | Z-intel Imp. KE Penetrator | -5/Factory | Z-intel Thunder Hammer | -5/Factory | Z-intel Plasma Sword | -5/Factory | Scanalyzed Enh. Coil Gun | -5/Factory | Z-intel Hvy. Proton Missile Launcher | -5/Factory | Z-intel Cld. Gravmag System | -5/Factory | Z-intel Antimatter Cannon | -5/Factory | Z-intel Prc. Rocket Launcher | -5/Factory | Z-intel Impact Mace | -5/Factory | Z-intel Enh. Armored Leg | -5/Factory | Z-intel Mni. Smartbomb Launcher | -5/Factory | Z-intel Scatter Rocket Array | -5/Factory | Z-intel Cld. VTOL Module | -5/Factory | Z-intel Kinetic Spear | -5/Factory | Z-intel Lrn. Tractor Beam | -4/Factory | Z-intel Mic. Fission Core | -4/Factory | Z-intel Imp. Coolant Injector | -4/Factory | Z-intel Imp. Proton Missile Launcher | -4/Factory | Z-intel Hrd. Medium Armor Plating | -4/Factory | Z-intel Imp. Medium Armor Plating | -4/Factory | Z-intel Imp. Target Analyzer | -4/Factory | Z-intel Imp. Linear Gravjet | -4/Factory | Z-intel Transmission Jammer | -4/Factory | Z-intel Arm. Huge Wheel | -4/Factory | Z-intel Microactuators | -4/Factory | Z-intel Enh. Gauss Cannon | -4/Factory | Z-intel Nanoactuators | -4/Factory | Scanalyzed Plasma Lance | -4/Factory | Scanalyzed Adv. Reaction Control System | -4/Factory | Scanalyzed Exp. Terrain Scan Processor | -4/Factory | Z-intel Lrn. Phase Cannon | -4/Factory | Z-intel Prc. Energy Filter | -4/Factory | Z-intel Fusion Reactor | -4/Factory | Z-intel Exp. Hacking Suite | -4/Factory | Z-intel Hvy. Neutron Cannon | -4/Factory | Z-intel Molecular Scythe | -4/Factory | Z-intel Lgt. Antimatter Cannon | -4/Factory | Z-intel Adv. Myomer Leg | -4/Factory | Z-intel Cld. Phase Gun | -4/Factory | Z-intel Adv. Matter Compressor | -4/Factory | Z-intel Gravity Flail | -4/Factory | Z-intel Adv. Thermal Defense Suite | -4/Factory | Z-intel Exp. ECM Suite | -4/Factory | Z-intel Imp. Matter Compressor | -4/Factory | Z-intel Thermal Defense Suite | -4/Factory | Z-intel Hvy. Proton Cannon | -4/Factory | Z-intel Cld. Field Propulsion Drive | -4/Factory | Z-intel Com. Ion Cannon | -4/Factory | Z-intel Hdn. Centrium Wheel | -3/Research | Z-intel Exp. EM Disruption Field | -3/Research | Z-intel Graviton Reactor | -3/Research | Z-intel Exp. Optical Array | -3/Research | Z-intel Adv. Variable Charge Gun | -3/Research | Z-intel Prc. Phase Gun | -3/Research | Z-intel Proton Burst Cannon | -3/Research | Z-intel Coolant Network | -3/Research | Z-intel Com. Particle Reactor | -3/Quarantine | Archive Enh. Armored Medium Treads | -3/Section 7 | Z-intel Com. Mass Driver | -3/Section 7 | Z-intel Imp. Matter Neutralizer | -3/Section 7 | Z-intel Energy Mantle | -3/Section 7 | Z-intel Mni. Fusion Reactor | -3/Section 7 | Z-intel Imp. Diametric Drive | -3/Section 7 | Z-intel Cld. Proton Cannon | -3/Section 7 | Z-intel Exp. Thermal Shield | -3/Section 7 | Z-intel Adv. EM Disruption Field | -3/Section 7 | Z-intel Helical Railgun | -3/Section 7 | Z-intel Exp. Cooling System | -3/Section 7 | Z-intel Robot Schematics ------------------ Y-54 Guardian | -6/Zion | Archive Y-72 Warden | -6/Zion | Archive S-27 Virus | -6/Zion | Archive M-22 Extractor | -6/Zion | Archive K-01 Serf | -3/Quarantine | Z-intel M-36 Artificer | -3/Quarantine | Z-intel G-67 Veteran | -3/Quarantine | Z-intel A-27 Freighter | -3/Quarantine | Z-intel S-43 Plague | -3/Quarantine | Z-intel C-55 Analyst | -3/Quarantine | Z-intel C-35 Carver | -3/Quarantine | Z-intel R-10 Processor | -3/Quarantine | Z-intel A-15 Conveyor | -3/Quarantine | Z-intel Fabricated ------------ B-48 Gladiator | x3 | -7/Factory | Preloaded Adv. Signal Interpreter | x2 | -7/Factory | Preloaded Biomechanical Wings | x1 | -6/Factory Biomechanical Wings | x1 | -6/Factory Biomechanical Wings | x1 | -5/Factory Alien Tech Used ----------------- Terrabomb Phase Redirector Subatomic Replicator Core Cannon Integrated Thermoelectric Network High-powered Transdimensional Reconstructor Integrated Reactor Spacefold Activator Achievements -------------- My Command Is Your Wish Challenges ------------ None Game ------ Seed AuthchipEtherialChronowheel Manual? 0 Play Time 07:06:15 Cumulative 342.5 hours Start 2023.06.28 @ 13:48:55 End 2023.07.11 @ 15:27:35 Sessions 7 Manual Loads 0 Difficulty Rogue Special Mode None Game No. 131 Rogue 115 Adventurer 8 Explorer 8 Win Type - Total 25 Types 12/1/8/1/1/1/1/0/0 Lore% 89 Gallery% 87 Achievement% 77 Wizard Run 0 Options --------- ASCII 1 Keyboard 1 Movement Vi Keybinds 0 Fullscreen 1 Font 18/SmallcapsGlow Map View 76x50 Tactical HUD 1 Map Filters NONE Filters NONE Steam 0 RUN: dc3fc13f-34f4-4ac3-990b-f0afd6a9c3f2